[Event "Live Chess"]
[Site "Chess.com"]
[Date "2023.05.20"]
[Round "-"]
[White "jagbama"]
[Black "lord_cll"]
[Result "0-1"]
[WhiteElo "1138"]
[BlackElo "1206"]
[TimeControl "300"]
[EndTime "10:48:47 PDT"]
[Termination "lord_cll won by checkmate"]

1. e4 {[%clk 0:04:57.5]} 1... d5 {[%clk 0:04:56]} 2. exd5 {[%clk 0:04:53.2]}
2... Qxd5 {[%clk 0:04:55.9]} 3. Nc3 {[%clk 0:04:52.8]} 3... Qa5 {[%clk
0:04:54.5]} 4. Nf3 {[%clk 0:04:47]} 4... Nf6 {[%clk 0:04:50.7]} 5. d3 {[%clk
0:04:43.2]} 5... Bf5 {[%clk 0:04:41.1]} 6. Bd2 {[%clk 0:04:39]} 6... c6 {[%clk
0:04:39.2]} 7. Ne4 {[%clk 0:04:21.4]} 7... Qc7 {[%clk 0:04:36]} 8. Nxf6+ {[%clk
0:04:13.9]} 8... gxf6 {[%clk 0:04:35.9]} 9. Be2 {[%clk 0:04:08.3]} 9... e6
{[%clk 0:04:33.9]} 10. c3 {[%clk 0:03:58.6]} 10... Bd6 {[%clk 0:04:31.8]} 11. g3
{[%clk 0:03:51.9]} 11... Nd7 {[%clk 0:04:27.6]} 12. Nd4 {[%clk 0:03:43.9]} 12...
Bh3 {[%clk 0:04:15.9]} 13. Bg4 {[%clk 0:03:25.2]} 13... Bxg4 {[%clk 0:04:07.1]}
14. Qxg4 {[%clk 0:03:23.5]} 14... O-O-O {[%clk 0:04:03.5]} 15. b4 {[%clk
0:03:06.3]} 15... Ne5 {[%clk 0:04:01.7]} 16. Qe2 {[%clk 0:02:55.9]} 16... Bxb4
{[%clk 0:03:37.3]} 17. Nxc6 {[%clk 0:02:21.9]} 17... Nxd3+ {[%clk 0:03:23.8]}
18. Kf1 {[%clk 0:02:12.1]} 18... Qxc6 {[%clk 0:03:05]} 19. cxb4 {[%clk
0:02:09.6]} 19... Qxh1# {[%clk 0:03:02.1]} 0-1

[Event "Live Chess"]
[Site "Chess.com"]
[Date "2023.05.20"]
[Round "-"]
[White "JackRudd"]
[Black "jennybobby44"]
[Result "1-0"]
[WhiteElo "2433"]
[BlackElo "1851"]
[TimeControl "300"]
[EndTime "10:48:56 PDT"]
[Termination "JackRudd won by resignation"]

1. d4 {[%clk 0:04:57.5]} 1... Nf6 {[%clk 0:04:58.4]} 2. c4 {[%clk 0:04:56.3]}
2... e6 {[%clk 0:04:56.9]} 3. Nc3 {[%clk 0:04:54]} 3... Bb4 {[%clk 0:04:56.2]}
4. f3 {[%clk 0:04:51.8]} 4... d5 {[%clk 0:04:49.9]} 5. a3 {[%clk 0:04:50.2]}
5... Bxc3+ {[%clk 0:04:48.6]} 6. bxc3 {[%clk 0:04:49.5]} 6... c5 {[%clk
0:04:47.9]} 7. cxd5 {[%clk 0:04:47.2]} 7... exd5 {[%clk 0:04:46.9]} 8. e3 {[%clk
0:04:46.5]} 8... O-O {[%clk 0:04:44.9]} 9. Bd3 {[%clk 0:04:45.2]} 9... Nc6
{[%clk 0:04:43]} 10. Ne2 {[%clk 0:04:43.9]} 10... Be6 {[%clk 0:04:40.4]} 11. O-O
{[%clk 0:04:42.6]} 11... Rc8 {[%clk 0:04:38.2]} 12. a4 {[%clk 0:04:40.1]} 12...
h6 {[%clk 0:04:32.8]} 13. Ba3 {[%clk 0:04:36.5]} 13... cxd4 {[%clk 0:04:27.3]}
14. cxd4 {[%clk 0:04:31.2]} 14... Re8 {[%clk 0:04:25.6]} 15. Qd2 {[%clk
0:04:29.1]} 15... Qa5 {[%clk 0:04:19.5]} 16. Qxa5 {[%clk 0:04:24.7]} 16... Nxa5
{[%clk 0:04:17.6]} 17. e4 {[%clk 0:04:20.6]} 17... dxe4 {[%clk 0:04:11.9]} 18.
fxe4 {[%clk 0:04:19.7]} 18... Bc4 {[%clk 0:04:09.5]} 19. Bxc4 {[%clk 0:04:18.6]}
19... Nxc4 {[%clk 0:04:08.4]} 20. e5 {[%clk 0:04:17.6]} 20... Nxa3 {[%clk
0:03:56.1]} 21. Rxa3 {[%clk 0:04:13.2]} 21... Nd5 {[%clk 0:03:54.5]} 22. Nf4
{[%clk 0:04:09.4]} 22... Red8 {[%clk 0:03:24.3]} 23. Raf3 {[%clk 0:04:05.8]}
23... Rc3 {[%clk 0:03:06.1]} 24. Nxd5 {[%clk 0:04:00.1]} 24... Rxf3 {[%clk
0:03:05.1]} 25. Ne7+ {[%clk 0:03:59.1]} 25... Kf8 {[%clk 0:03:02.6]} 26. Ng6+
{[%clk 0:03:58]} 26... fxg6 {[%clk 0:02:59.1]} 27. Rxf3+ {[%clk 0:03:57.2]}
27... Ke7 {[%clk 0:02:58.6]} 28. Rd3 {[%clk 0:03:55.5]} 28... Ke6 {[%clk
0:02:57.5]} 29. Kf2 {[%clk 0:03:54.8]} 29... Kd5 {[%clk 0:02:56.9]} 30. Ke3
{[%clk 0:03:54]} 30... Rc8 {[%clk 0:02:50.3]} 31. Rb3 {[%clk 0:03:52.2]} 31...
b6 {[%clk 0:02:49]} 32. Rb5+ {[%clk 0:03:47.4]} 32... Ke6 {[%clk 0:02:44.6]} 33.
a5 {[%clk 0:03:46.5]} 33... bxa5 {[%clk 0:02:28.7]} 34. Rxa5 {[%clk 0:03:42.7]}
34... Rc7 {[%clk 0:02:23]} 35. Ke4 {[%clk 0:03:40.4]} 35... Rb7 {[%clk
0:02:21.5]} 36. d5+ {[%clk 0:03:35.2]} 36... Ke7 {[%clk 0:02:20]} 37. e6 {[%clk
0:03:31.7]} 37... Kf6 {[%clk 0:02:08.8]} 38. Ra4 {[%clk 0:03:22.2]} 38... a5
{[%clk 0:02:02.4]} 39. Kd4 {[%clk 0:03:17.4]} 39... g5 {[%clk 0:01:54.7]} 40.
Kc5 {[%clk 0:03:15.2]} 40... Rb1 {[%clk 0:01:49.7]} 41. Kd6 {[%clk 0:03:12.3]}
41... Rb6+ {[%clk 0:01:42.5]} 42. Kc7 {[%clk 0:03:08.4]} 42... Ra6 {[%clk
0:01:41.8]} 43. Kb7 {[%clk 0:02:59.2]} 43... Rd6 {[%clk 0:01:40.7]} 44. Rxa5
{[%clk 0:02:58.2]} 44... g4 {[%clk 0:01:35.6]} 45. Kc7 {[%clk 0:02:55.4]} 45...
Ke7 {[%clk 0:01:34.9]} 46. g3 {[%clk 0:02:46.2]} 46... g5 {[%clk 0:01:33.9]} 47.
Kb7 {[%clk 0:02:42.7]} 47... h5 {[%clk 0:01:29.1]} 48. Kc7 {[%clk 0:02:40.5]}
48... h4 {[%clk 0:01:26.8]} 49. Rb5 {[%clk 0:02:36.2]} 49... Rd8 {[%clk
0:01:19.6]} 50. Kc6 {[%clk 0:02:25.1]} 50... Rd6+ {[%clk 0:01:18.5]} 51. Kc5
{[%clk 0:02:23.5]} 51... Rd8 {[%clk 0:01:16.2]} 52. Rb7+ {[%clk 0:02:18.2]}
52... Kf6 {[%clk 0:01:13.4]} 53. Kd4 {[%clk 0:02:11]} 53... hxg3 {[%clk
0:01:07.3]} 54. hxg3 {[%clk 0:02:09.5]} 54... Ra8 {[%clk 0:01:06.7]} 55. Rf7+
{[%clk 0:02:07.6]} 55... Kg6 {[%clk 0:01:04.5]} 56. Rf2 {[%clk 0:02:06.4]} 56...
Ra3 {[%clk 0:01:01.1]} 57. e7 {[%clk 0:02:04.9]} 1-0

[Event "Live Chess"]
[Site "Chess.com"]
[Date "2023.05.20"]
[Round "-"]
[White "bristolunichess"]
[Black "MaximKhimchenko"]
[Result "1-0"]
[WhiteElo "1813"]
[BlackElo "1348"]
[TimeControl "300"]
[EndTime "10:49:07 PDT"]
[Termination "bristolunichess won by resignation"]

1. e4 {[%clk 0:04:57.2]} 1... e5 {[%clk 0:04:59.4]} 2. Nf3 {[%clk 0:04:55.5]}
2... Nc6 {[%clk 0:04:59.1]} 3. Bb5 {[%clk 0:04:54.6]} 3... a6 {[%clk 0:04:57.7]}
4. Ba4 {[%clk 0:04:53.6]} 4... b5 {[%clk 0:04:56.3]} 5. Bb3 {[%clk 0:04:52.1]}
5... Nf6 {[%clk 0:04:52.4]} 6. Nc3 {[%clk 0:04:19.1]} 6... Bc5 {[%clk
0:04:50.7]} 7. O-O {[%clk 0:04:12.2]} 7... d6 {[%clk 0:04:48.3]} 8. h3 {[%clk
0:03:24.3]} 8... Be6 {[%clk 0:04:36.1]} 9. Re1 {[%clk 0:03:23.2]} 9... Qd7
{[%clk 0:04:31.4]} 10. d3 {[%clk 0:03:09.7]} 10... h5 {[%clk 0:04:15.8]} 11. Bg5
{[%clk 0:03:06.4]} 11... Nd4 {[%clk 0:04:06.1]} 12. Nxd4 {[%clk 0:03:02]} 12...
Bxd4 {[%clk 0:04:05.3]} 13. Qd2 {[%clk 0:02:45.8]} 13... Nh7 {[%clk 0:03:44.2]}
14. Be3 {[%clk 0:02:41.6]} 14... Ba7 {[%clk 0:03:39.4]} 15. Bxa7 {[%clk
0:02:39.5]} 15... Rxa7 {[%clk 0:03:38.2]} 16. a4 {[%clk 0:02:38.2]} 16... b4
{[%clk 0:03:34.6]} 17. Bxe6 {[%clk 0:02:35.6]} 17... Qxe6 {[%clk 0:03:31.3]} 18.
Nd5 {[%clk 0:02:35.2]} 18... c5 {[%clk 0:03:27.8]} 19. a5 {[%clk 0:02:20.3]}
19... Ng5 {[%clk 0:03:22.8]} 20. Qxg5 {[%clk 0:02:14]} 1-0

[Event "Live Chess"]
[Site "Chess.com"]
[Date "2023.05.20"]
[Round "-"]
[White "CeladonFish"]
[Black "tpm07"]
[Result "1/2-1/2"]
[WhiteElo "1043"]
[BlackElo "1950"]
[TimeControl "300"]
[EndTime "10:49:15 PDT"]
[Termination "Game drawn by repetition"]

1. d4 {[%clk 0:04:59.3]} 1... Nf6 {[%clk 0:04:56.1]} 2. c4 {[%clk 0:04:58.4]}
2... g6 {[%clk 0:04:54.7]} 3. Nc3 {[%clk 0:04:57.8]} 3... d5 {[%clk 0:04:50.4]}
4. Bf4 {[%clk 0:04:53.4]} 4... Bg7 {[%clk 0:04:48.3]} 5. Nf3 {[%clk 0:04:51.7]}
5... O-O {[%clk 0:04:44.4]} 6. e3 {[%clk 0:04:44.7]} 6... c5 {[%clk 0:04:42.5]}
7. cxd5 {[%clk 0:04:43.4]} 7... Nxd5 {[%clk 0:04:42.4]} 8. Nxd5 {[%clk
0:04:30.7]} 8... Qxd5 {[%clk 0:04:38.9]} 9. Qc2 {[%clk 0:04:21.4]} 9... cxd4
{[%clk 0:04:35.7]} 10. exd4 {[%clk 0:04:20.2]} 10... Nc6 {[%clk 0:04:27.3]} 11.
Bc4 {[%clk 0:04:16.6]} 11... Qa5+ {[%clk 0:04:18.3]} 12. Qc3 {[%clk 0:04:09.4]}
12... Bg4 {[%clk 0:04:04.9]} 13. Qxa5 {[%clk 0:04:03.6]} 13... Nxa5 {[%clk
0:04:04.8]} 14. Bd5 {[%clk 0:03:58.7]} 14... Bxf3 {[%clk 0:04:01]} 15. Bxf3
{[%clk 0:03:57.1]} 15... Bxd4 {[%clk 0:03:59.3]} 16. b4 {[%clk 0:03:54.2]} 16...
Bxa1 {[%clk 0:03:54.3]} 17. bxa5 {[%clk 0:03:53.3]} 17... Bc3+ {[%clk
0:03:53.5]} 18. Ke2 {[%clk 0:03:52.3]} 18... Rab8 {[%clk 0:03:48.7]} 19. Rc1
{[%clk 0:03:49.1]} 19... Rfe8 {[%clk 0:03:47]} 20. Bxb8 {[%clk 0:03:47.8]} 20...
Rxb8 {[%clk 0:03:44.9]} 21. Rxc3 {[%clk 0:03:47.2]} 21... b6 {[%clk 0:03:44.5]}
22. axb6 {[%clk 0:03:45.9]} 22... axb6 {[%clk 0:03:44.4]} 23. a4 {[%clk
0:03:44]} 23... b5 {[%clk 0:03:41.4]} 24. axb5 {[%clk 0:03:42.9]} 24... Rxb5
{[%clk 0:03:41.3]} 25. Rc8+ {[%clk 0:03:42.1]} 25... Kg7 {[%clk 0:03:38.6]} 26.
Rc7 {[%clk 0:03:32.2]} 26... Kf6 {[%clk 0:03:35.8]} 27. Ke3 {[%clk 0:03:25.3]}
27... h5 {[%clk 0:03:31.9]} 28. g4 {[%clk 0:03:23.5]} 28... Rb3+ {[%clk
0:03:27.1]} 29. Kf4 {[%clk 0:03:22]} 29... g5+ {[%clk 0:03:23.7]} 30. Kg3 {[%clk
0:03:20.1]} 30... h4+ {[%clk 0:03:22.2]} 31. Kg2 {[%clk 0:03:18.4]} 31... e5
{[%clk 0:03:20.9]} 32. Rc6+ {[%clk 0:03:16.4]} 32... Kg7 {[%clk 0:03:18.1]} 33.
Bd5 {[%clk 0:03:03.7]} 33... Rd3 {[%clk 0:03:04.5]} 34. Bc4 {[%clk 0:03:00.2]}
34... Rd4 {[%clk 0:03:01.8]} 35. Rc7 {[%clk 0:02:59.2]} 35... Rxg4+ {[%clk
0:02:58.7]} 36. Kh3 {[%clk 0:02:54.9]} 36... Rf4 {[%clk 0:02:55.8]} 37. Kg2
{[%clk 0:02:51.5]} 37... Kg6 {[%clk 0:02:46.1]} 38. Bd3+ {[%clk 0:02:50]} 38...
Kh5 {[%clk 0:02:43.7]} 39. Rc8 {[%clk 0:02:48]} 39... e4 {[%clk 0:02:37.6]} 40.
Bc2 {[%clk 0:02:40]} 40... Kg4 {[%clk 0:02:32.6]} 41. h3+ {[%clk 0:02:30.6]}
41... Kf5 {[%clk 0:02:30.2]} 42. Rc5+ {[%clk 0:02:27.3]} 42... Kg6 {[%clk
0:02:24.6]} 43. Rc3 {[%clk 0:02:11.1]} 43... Kf6 {[%clk 0:02:16.9]} 44. f3
{[%clk 0:02:08.1]} 44... exf3+ {[%clk 0:02:11.6]} 45. Rxf3 {[%clk 0:02:06.3]}
45... Ke5 {[%clk 0:02:10.3]} 46. Rxf4 {[%clk 0:02:02.3]} 46... Kxf4 {[%clk
0:02:10.2]} 47. Bd1 {[%clk 0:01:58.5]} 47... f5 {[%clk 0:02:08.2]} 48. Bf3
{[%clk 0:01:52.1]} 48... g4 {[%clk 0:02:04.7]} 49. hxg4 {[%clk 0:01:44.6]} 49...
fxg4 {[%clk 0:02:04.6]} 50. Bxg4 {[%clk 0:01:28.9]} 50... Kxg4 {[%clk
0:02:04.5]} 51. Kh2 {[%clk 0:01:28.3]} 51... Kh5 {[%clk 0:02:02.9]} 52. Kh3
{[%clk 0:01:27.3]} 52... Kg5 {[%clk 0:02:01.4]} 53. Kh2 {[%clk 0:01:24.7]} 53...
Kf4 {[%clk 0:02:00.7]} 54. Kh3 {[%clk 0:01:22.6]} 54... Kg5 {[%clk 0:02:00.6]}
55. Kh2 {[%clk 0:01:21.7]} 55... Kh5 {[%clk 0:01:59.4]} 56. Kh3 {[%clk
0:01:17.8]} 56... Kg5 {[%clk 0:01:59.3]} 1/2-1/2

[Event "Live Chess"]
[Site "Chess.com"]
[Date "2023.05.20"]
[Round "-"]
[White "Driftboard"]
[Black "smoggyrabbit"]
[Result "0-1"]
[WhiteElo "683"]
[BlackElo "1616"]
[TimeControl "300"]
[EndTime "10:49:24 PDT"]
[Termination "smoggyrabbit won - game abandoned"]

1. e4 {[%clk 0:04:59.2]} 1... e6 {[%clk 0:04:58.8]} 2. Nf3 {[%clk 0:04:58.1]}
2... d5 {[%clk 0:04:57.8]} 3. exd5 {[%clk 0:04:56.8]} 3... exd5 {[%clk 0:04:57]}
4. Nc3 {[%clk 0:04:53.8]} 4... c6 {[%clk 0:04:55.7]} 5. d3 {[%clk 0:04:50.1]}
5... Bd6 {[%clk 0:04:54.5]} 6. Be2 {[%clk 0:04:48.1]} 6... Ne7 {[%clk
0:04:53.3]} 7. O-O {[%clk 0:04:46.9]} 7... O-O {[%clk 0:04:52.4]} 8. Bg5 {[%clk
0:04:44.1]} 8... f6 {[%clk 0:04:51.3]} 9. Bd2 {[%clk 0:04:41.1]} 9... Bg4 {[%clk
0:04:49.8]} 10. h3 {[%clk 0:04:39.6]} 10... Bxf3 {[%clk 0:04:46.4]} 11. Bxf3
{[%clk 0:04:37.6]} 11... Nd7 {[%clk 0:04:45.3]} 12. Bg4 {[%clk 0:04:34.5]} 12...
Ne5 {[%clk 0:04:28.1]} 13. Be6+ {[%clk 0:04:29.2]} 13... Kh8 {[%clk 0:04:21.9]}
14. Bg4 {[%clk 0:04:27.7]} 14... Nxg4 {[%clk 0:04:20.2]} 15. Qxg4 {[%clk
0:04:26]} 15... Ng6 {[%clk 0:04:10.5]} 16. h4 {[%clk 0:03:56.7]} 16... f5 {[%clk
0:03:55.7]} 0-1

[Event "Live Chess"]
[Site "Chess.com"]
[Date "2023.05.20"]
[Round "-"]
[White "viktorskliarov"]
[Black "Ayush_prahlad_Gupta"]
[Result "1-0"]
[WhiteElo "2649"]
[BlackElo "1793"]
[TimeControl "300"]
[EndTime "10:49:29 PDT"]
[Termination "viktorskliarov won by checkmate"]

1. e4 {[%clk 0:04:57.5]} 1... e5 {[%clk 0:04:54.8]} 2. Nc3 {[%clk 0:04:52.4]}
2... Nc6 {[%clk 0:04:54.2]} 3. Bc4 {[%clk 0:04:50.4]} 3... Bc5 {[%clk
0:04:53.6]} 4. Qg4 {[%clk 0:04:48.6]} 4... g6 {[%clk 0:04:51.6]} 5. Qf3 {[%clk
0:04:45]} 5... Nf6 {[%clk 0:04:50.7]} 6. Nge2 {[%clk 0:04:41.4]} 6... d6 {[%clk
0:04:49.1]} 7. d3 {[%clk 0:04:34.7]} 7... Bg4 {[%clk 0:04:45.8]} 8. Qg3 {[%clk
0:04:32.3]} 8... Qd7 {[%clk 0:04:44.7]} 9. h3 {[%clk 0:04:27.2]} 9... Be6 {[%clk
0:04:40]} 10. Bg5 {[%clk 0:04:16.3]} 10... Nh5 {[%clk 0:04:35.9]} 11. Qf3 {[%clk
0:04:15]} 11... Bxc4 {[%clk 0:04:28]} 12. dxc4 {[%clk 0:04:12.9]} 12... Nd4
{[%clk 0:04:20.7]} 13. Nxd4 {[%clk 0:04:09.8]} 13... exd4 {[%clk 0:04:20.6]} 14.
Nd5 {[%clk 0:04:04.2]} 14... c6 {[%clk 0:04:18.8]} 15. Nf6+ {[%clk 0:03:54.1]}
15... Nxf6 {[%clk 0:04:16.2]} 16. Bxf6 {[%clk 0:03:35.3]} 16... O-O {[%clk
0:04:06.9]} 17. O-O-O {[%clk 0:03:21.4]} 17... Qe6 {[%clk 0:04:04.6]} 18. b3
{[%clk 0:03:01.1]} 18... a5 {[%clk 0:04:01.7]} 19. Bxd4 {[%clk 0:02:45.3]} 19...
Bxd4 {[%clk 0:03:52.5]} 20. Rxd4 {[%clk 0:02:45.2]} 20... Qe5 {[%clk 0:03:51.2]}
21. Rhd1 {[%clk 0:02:19.9]} 21... Rfd8 {[%clk 0:03:39]} 22. Qg3 {[%clk
0:02:13.4]} 22... Qc5 {[%clk 0:03:31.1]} 23. Rxd6 {[%clk 0:02:01.9]} 23... Qa3+
{[%clk 0:03:25.1]} 24. Kb1 {[%clk 0:01:59.9]} 24... Re8 {[%clk 0:03:22.5]} 25.
Qc3 {[%clk 0:01:51.1]} 25... b5 {[%clk 0:03:17.6]} 26. Rxc6 {[%clk 0:01:38.9]}
26... b4 {[%clk 0:02:52.1]} 27. Qb2 {[%clk 0:01:36]} 27... a4 {[%clk 0:02:49.3]}
28. Qxa3 {[%clk 0:01:34.2]} 28... bxa3 {[%clk 0:02:49.2]} 29. f3 {[%clk
0:01:32.9]} 29... axb3 {[%clk 0:02:45.6]} 30. cxb3 {[%clk 0:01:21.2]} 30... Re5
{[%clk 0:02:25.3]} 31. Rcd6 {[%clk 0:01:17.7]} 31... Kg7 {[%clk 0:02:23.4]} 32.
R6d5 {[%clk 0:01:14.2]} 32... Re6 {[%clk 0:02:21.6]} 33. Kc2 {[%clk 0:01:13.5]}
33... Rae8 {[%clk 0:02:15.6]} 34. b4 {[%clk 0:01:12]} 34... f5 {[%clk
0:02:14.2]} 35. exf5 {[%clk 0:01:11.2]} 35... gxf5 {[%clk 0:02:10.3]} 36. Rxf5
{[%clk 0:01:10.3]} 36... Re2+ {[%clk 0:02:02.4]} 37. Rd2 {[%clk 0:01:09.4]}
37... R2e3 {[%clk 0:01:56.1]} 38. Rfd5 {[%clk 0:01:07.6]} 38... Rc8 {[%clk
0:01:54.2]} 39. c5 {[%clk 0:00:59.8]} 39... Rb8 {[%clk 0:01:51.5]} 40. R5d4
{[%clk 0:00:59.2]} 40... Rbe8 {[%clk 0:01:45.3]} 41. R4d3 {[%clk 0:00:55.6]}
41... Re1 {[%clk 0:01:44.1]} 42. Kb3 {[%clk 0:00:51.7]} 42... Rb1+ {[%clk
0:01:36.9]} 43. Kc4 {[%clk 0:00:50.9]} 43... Rb8 {[%clk 0:01:30.8]} 44. Rb3
{[%clk 0:00:48.5]} 44... Ra1 {[%clk 0:01:28.1]} 45. Rxa3 {[%clk 0:00:45.7]}
45... Rc1+ {[%clk 0:01:26.5]} 46. Rc3 {[%clk 0:00:44.7]} 46... Re1 {[%clk
0:01:22.3]} 47. a3 {[%clk 0:00:43.2]} 47... Kf6 {[%clk 0:01:21]} 48. c6 {[%clk
0:00:41.9]} 48... Re6 {[%clk 0:01:19.6]} 49. Kb3 {[%clk 0:00:40.4]} 49... Ra8
{[%clk 0:01:17.5]} 50. c7 {[%clk 0:00:39.2]} 50... Ree8 {[%clk 0:01:14.8]} 51.
Rd8 {[%clk 0:00:37.4]} 51... Raxd8 {[%clk 0:01:11.8]} 52. cxd8=Q+ {[%clk
0:00:37.3]} 52... Rxd8 {[%clk 0:01:10.8]} 53. b5 {[%clk 0:00:37.1]} 53... Rd5
{[%clk 0:01:06.6]} 54. Kc4 {[%clk 0:00:35.7]} 54... Rg5 {[%clk 0:01:04.9]} 55.
b6 {[%clk 0:00:34.5]} 55... Rxg2 {[%clk 0:01:02.4]} 56. Rb3 {[%clk 0:00:34.2]}
56... Rg8 {[%clk 0:00:57.6]} 57. b7 {[%clk 0:00:33.6]} 57... Rb8 {[%clk
0:00:56.9]} 58. a4 {[%clk 0:00:33.1]} 58... Ke7 {[%clk 0:00:55.8]} 59. a5 {[%clk
0:00:32.8]} 59... Kd7 {[%clk 0:00:55.7]} 60. a6 {[%clk 0:00:32.3]} 60... Kc7
{[%clk 0:00:54.2]} 61. a7 {[%clk 0:00:32]} 61... Rxb7 {[%clk 0:00:50.6]} 62.
a8=Q {[%clk 0:00:30.9]} 62... Rxb3 {[%clk 0:00:48.9]} 63. Kxb3 {[%clk
0:00:30.8]} 63... Kd6 {[%clk 0:00:47.8]} 64. Qe4 {[%clk 0:00:30.7]} 64... Kd7
{[%clk 0:00:46.1]} 65. Qxh7+ {[%clk 0:00:30.2]} 65... Kd6 {[%clk 0:00:45.9]} 66.
Qe4 {[%clk 0:00:29.9]} 66... Kd7 {[%clk 0:00:43.5]} 67. Kc4 {[%clk 0:00:29.8]}
67... Kd6 {[%clk 0:00:43.2]} 68. Qf5 {[%clk 0:00:29.5]} 68... Kc7 {[%clk
0:00:43.1]} 69. Qe6 {[%clk 0:00:28.8]} 69... Kd8 {[%clk 0:00:40.5]} 70. Qf7
{[%clk 0:00:27.8]} 70... Kc8 {[%clk 0:00:39.3]} 71. Kc5 {[%clk 0:00:27.7]} 71...
Kd8 {[%clk 0:00:38.8]} 72. Kc6 {[%clk 0:00:27.6]} 72... Kc8 {[%clk 0:00:38.3]}
73. Qf8# {[%clk 0:00:27.1]} 1-0

[Event "Live Chess"]
[Site "Chess.com"]
[Date "2023.05.20"]
[Round "-"]
[White "LL220284LL"]
[Black "booktrunk"]
[Result "1-0"]
[WhiteElo "2396"]
[BlackElo "1333"]
[TimeControl "300"]
[EndTime "10:49:41 PDT"]
[Termination "LL220284LL won by resignation"]

1. f3 {[%clk 0:04:59]} 1... d5 {[%clk 0:04:59.9]} 2. b3 {[%clk 0:04:57.6]} 2...
Bf5 {[%clk 0:04:55.9]} 3. Bb2 {[%clk 0:04:56.8]} 3... e6 {[%clk 0:04:54]} 4. e3
{[%clk 0:04:49.6]} 4... h5 {[%clk 0:04:52.6]} 5. Ne2 {[%clk 0:04:41.6]} 5... Bd6
{[%clk 0:04:50.1]} 6. d3 {[%clk 0:04:39.8]} 6... Nc6 {[%clk 0:04:42]} 7. g3
{[%clk 0:04:38.8]} 7... h4 {[%clk 0:04:39]} 8. g4 {[%clk 0:04:38]} 8... Bg6
{[%clk 0:04:35.4]} 9. h3 {[%clk 0:04:37.3]} 9... Be5 {[%clk 0:04:29.1]} 10. d4
{[%clk 0:04:34.6]} 10... Bd6 {[%clk 0:04:27.3]} 11. Bg2 {[%clk 0:04:34.2]} 11...
e5 {[%clk 0:04:25.6]} 12. Nd2 {[%clk 0:04:32.8]} 12... exd4 {[%clk 0:04:24.2]}
13. Nxd4 {[%clk 0:04:32.7]} 13... Nxd4 {[%clk 0:04:22.9]} 14. Bxd4 {[%clk
0:04:32.6]} 14... c5 {[%clk 0:04:20]} 15. Bxg7 {[%clk 0:04:30.9]} 15... Rh7
{[%clk 0:04:18.4]} 16. Bb2 {[%clk 0:04:29.9]} 16... Bg3+ {[%clk 0:04:13.9]} 17.
Kf1 {[%clk 0:04:27.7]} 17... Qa5 {[%clk 0:04:11.2]} 18. f4 {[%clk 0:04:24.7]}
18... f5 {[%clk 0:04:03.4]} 19. Bxd5 {[%clk 0:04:17.8]} 19... fxg4 {[%clk
0:04:01.1]} 20. Nc4 {[%clk 0:04:10]} 20... Qb5 {[%clk 0:03:55.7]} 21. Bxg8
{[%clk 0:04:01.6]} 21... Re7 {[%clk 0:03:47.3]} 22. Qxg4 {[%clk 0:03:59.1]}
22... Bxc2 {[%clk 0:03:41.8]} 23. Qh5+ {[%clk 0:03:41.1]} 23... Kd7 {[%clk
0:03:37]} 24. Qd5+ {[%clk 0:03:39.5]} 24... Ke8 {[%clk 0:03:33.7]} 25. Bh8
{[%clk 0:03:38.1]} 25... Bxb3 {[%clk 0:03:28.9]} 26. axb3 {[%clk 0:03:35.5]}
26... Qxb3 {[%clk 0:03:27.1]} 27. Nd6+ {[%clk 0:03:33.9]} 27... Kf8 {[%clk
0:03:25.4]} 28. Qxb3 {[%clk 0:03:32.8]} 1-0

[Event "Live Chess"]
[Site "Chess.com"]
[Date "2023.05.20"]
[Round "-"]
[White "Tushinskiy"]
[Black "PetorPrydatko"]
[Result "1-0"]
[WhiteElo "2106"]
[BlackElo "369"]
[TimeControl "300"]
[EndTime "10:49:44 PDT"]
[Termination "Tushinskiy won by checkmate"]

1. d4 {[%clk 0:04:49.7]} 1... d5 {[%clk 0:04:53]} 2. c3 {[%clk 0:04:49.6]} 2...
Bf5 {[%clk 0:04:45.1]} 3. Nf3 {[%clk 0:04:49.5]} 3... e6 {[%clk 0:04:35.8]} 4.
Bf4 {[%clk 0:04:48.7]} 4... Nc6 {[%clk 0:04:19.8]} 5. e3 {[%clk 0:04:47.5]} 5...
Nf6 {[%clk 0:04:01.4]} 6. Bd3 {[%clk 0:04:45.6]} 6... Bd6 {[%clk 0:03:49.2]} 7.
Bxf5 {[%clk 0:04:43.5]} 7... Bxf4 {[%clk 0:03:46.3]} 8. Bxe6 {[%clk 0:04:42]}
8... Qd6 {[%clk 0:03:39.9]} 9. Bxf7+ {[%clk 0:04:39.5]} 9... Kxf7 {[%clk
0:03:37.3]} 10. exf4 {[%clk 0:04:39.4]} 10... Rae8+ {[%clk 0:03:29.3]} 11. Ne5+
{[%clk 0:04:37.7]} 11... Nxe5 {[%clk 0:03:02.3]} 12. fxe5 {[%clk 0:04:37.6]}
12... Qe7 {[%clk 0:02:50.9]} 13. O-O {[%clk 0:04:35.3]} 13... Ng4 {[%clk
0:02:42.8]} 14. Qxg4 {[%clk 0:04:32.6]} 14... Kg8 {[%clk 0:02:34]} 15. f4 {[%clk
0:04:30.7]} 15... Rd8 {[%clk 0:02:09.8]} 16. Nd2 {[%clk 0:04:28.8]} 16... Kf8
{[%clk 0:02:02.1]} 17. f5 {[%clk 0:04:26.9]} 17... Qe8 {[%clk 0:01:58.7]} 18. f6
{[%clk 0:04:24.9]} 18... Rd7 {[%clk 0:01:47.8]} 19. fxg7+ {[%clk 0:04:21]} 19...
Kg8 {[%clk 0:01:43.4]} 20. Rf8+ {[%clk 0:04:19.5]} 20... Qxf8 {[%clk 0:01:41.7]}
21. gxf8=Q+ {[%clk 0:04:18.5]} 21... Kxf8 {[%clk 0:01:39.6]} 22. Qxd7 {[%clk
0:04:18.4]} 22... Kg8 {[%clk 0:01:37]} 23. Rf1 {[%clk 0:04:18.1]} 23... h5
{[%clk 0:01:20.6]} 24. Qf7# {[%clk 0:04:18]} 1-0